fUSD/lending_fUSD_20250204
["ID","MTS","AMOUNT","RATE_DAILY","PERIOD"]
[351642314,1738681856672,-632.63,9.885e-05,2]
[351642315,1738681856681,-1150.35,9.885e-05,2]
[351642316,1738681856691,-515.85,9.885e-05,2]
[351642317,1738681856701,-784.68,9.885e-05,2]
[351642318,1738681856711,-1000.0,9.885e-05,2]
[351642319,1738681856722,-586.47,9.885e-05,2]
[351642320,1738681856732,-688.2,9.885e-05,2]
[351642321,1738681856742,-801.95,9.885e-05,2]
[351642322,1738681856752,-688.16,9.885e-05,2]
[351642323,1738681856762,-500.0,9.885e-05,2]
[351642324,1738681856772,-1224.1,9.885e-05,2]
[351642325,1738681856781,-608.38,9.885e-05,2]
[351642326,1738681856791,-500.0,9.885e-05,2]
[351642327,1738681856801,-599.69,9.885e-05,2]
[351642328,1738681856811,-500.0,9.885e-05,2]
[351642329,1738681856821,-500.0,9.885e-05,2]
[351642330,1738681856831,-569.86,9.885e-05,2]
[351642331,1738681856841,-542.26,9.885e-05,2]
[351642332,1738681856850,-674.0,9.885e-05,2]
[351642333,1738681856860,-613.5,9.885e-05,2]
[351642334,1738681856869,-1030.22,9.885e-05,2]
[351642335,1738681856879,-573.04,9.885e-05,2]
[351642336,1738681856889,-500.0,9.885e-05,2]
[351642337,1738681856900,-735.78,9.885e-05,2]
[351642338,1738681856910,-739.56,9.885e-05,2]
[351642339,1738681856919,-644.47,9.885e-05,2]
[351642340,1738681856928,-1310.79,9.885e-05,2]
[351642341,1738681856938,-777.78,9.885e-05,2]
[351642342,1738681856947,-634.79,9.885e-05,2]
[351642343,1738681856958,-806.52,9.885e-05,2]
[351642344,1738681856968,-500.0,9.885e-05,2]
[351642345,1738681856978,-500.0,9.885e-05,2]
[351642346,1738681856988,-500.0,9.885e-05,2]
[351642347,1738681856998,-500.0,9.885e-05,2]
[351642348,1738681857008,-500.0,9.885e-05,2]
[351642349,1738681857018,-875.06,9.885e-05,2]
[351642350,1738681857027,-500.0,9.885e-05,2]
[351642351,1738681857038,-500.0,9.885e-05,2]
[351642352,1738681857047,-500.0,9.885e-05,2]
[351642353,1738681857108,-547.13,9.885e-05,2]
[351642354,1738681857118,-500.0,9.885e-05,2]
[351642355,1738681857128,-500.0,9.885e-05,2]
[351642356,1738681857138,-500.0,9.885e-05,2]
[351642357,1738681857147,-500.0,9.885e-05,2]
[351642358,1738681857157,-500.0,9.885e-05,2]
[351642359,1738681857167,-1084.26,9.885e-05,2]
[351642360,1738681857176,-500.0,9.885e-05,2]
[351642361,1738681857186,-500.0,9.886e-05,2]
[351642362,1738681857195,-572.58,9.886e-05,2]
[351642363,1738681857210,-500.0,9.886e-05,2]
[351642364,1738681857220,-500.0,9.886e-05,2]
[351642365,1738681857230,-500.0,9.886e-05,2]
[351642366,1738681857240,-500.0,9.886e-05,2]
[351642367,1738681857249,-500.0,9.886e-05,2]
[351642368,1738681857259,-500.0,9.886e-05,2]
[351642369,1738681857270,-500.0,9.886e-05,2]
[351642370,1738681857280,-500.0,9.886e-05,2]
[351642371,1738681857290,-500.0,9.886e-05,2]
[351642372,1738681857299,-500.0,9.886e-05,2]
[351642373,1738681857309,-500.0,9.886e-05,2]
[351642374,1738681857319,-500.0,9.886e-05,2]
[351642375,1738681857329,-500.0,9.886e-05,2]
[351642376,1738681857339,-500.0,9.886e-05,2]
[351642377,1738681857348,-500.0,9.886e-05,2]
[351642378,1738681857358,-519.74957306,9.886e-05,2]
[351642379,1738681857377,-500.0,9.886e-05,2]
[351642380,1738681857392,-500.0,9.886e-05,2]
[351642381,1738681857402,-500.0,9.886e-05,2]
[351642382,1738681857412,-500.0,9.886e-05,2]
[351642383,1738681857424,-500.0,9.886e-05,2]
[351642384,1738681857434,-526.1,9.886e-05,2]
[351642385,1738681857444,-500.0,9.886e-05,2]
[351642386,1738681857458,-500.0,9.886e-05,2]
[351642387,1738681857467,-500.0,9.886e-05,2]
[351642388,1738681857477,-500.0,9.886e-05,2]
[351642389,1738681857486,-246.67,9.886e-05,2]
[351642390,1738681857496,-500.0,9.886e-05,2]
[351642391,1738681857506,-500.0,9.886e-05,2]
[351642392,1738681857516,-500.0,9.886e-05,2]
[351642393,1738681857526,-500.0,9.886e-05,2]
[351642394,1738681857536,-500.0,9.886e-05,2]
[351642395,1738681857546,-500.0,9.886e-05,2]
[351642396,1738681857555,-500.0,9.886e-05,2]
[351642397,1738681857565,-500.0,9.886e-05,2]
[351642398,1738681857575,-416.764992,9.886e-05,2]
[351642399,1738681857585,-500.0,9.886e-05,2]
[351642400,1738681857595,-500.0,9.886e-05,2]
[351642401,1738681857604,-500.0,9.886e-05,2]
[351642402,1738681857614,-500.0,9.886e-05,2]
[351642403,1738681857624,-500.0,9.886e-05,2]
[351642404,1738681857633,-500.0,9.886e-05,2]
[351642405,1738681857643,-380.3,9.886e-05,2]
[351642406,1738681857653,-500.0,9.886e-05,2]
[351642407,1738681857663,-473.52,9.886e-05,2]
[351642408,1738681857673,-500.0,9.886e-05,2]
[351642409,1738681857694,-500.0,9.886e-05,2]
[351642410,1738681857719,-500.0,9.886e-05,2]
[351642411,1738681857732,-500.0,9.886e-05,2]
[351642412,1738681857743,-428.14,9.886e-05,2]
[351642413,1738681857756,-500.0,9.886e-05,2]
[351642414,1738681857767,-523.02,9.886e-05,2]
[351642415,1738681857777,-500.0,9.886e-05,2]
[351642416,1738681857787,-500.0,9.886e-05,2]
[351642417,1738681857797,-500.0,9.886e-05,2]
[351642418,1738681857807,-500.0,9.886e-05,2]
[351642419,1738681857817,-500.0,9.886e-05,2]
[351642420,1738681857828,-500.0,9.886e-05,2]
[351642421,1738681857837,-1243.5,9.886e-05,2]
[351642422,1738681857848,-573.86,9.886e-05,2]
[351642423,1738681857857,-166.91,9.886e-05,2]
[351642424,1738681857868,-500.0,9.886e-05,2]
[351642425,1738681857878,-559.68,9.886e-05,2]
[351642426,1738681857888,-500.0,9.886e-05,2]
[351642427,1738681857898,-500.0,9.886e-05,2]
[351642428,1738681857908,-628.3,9.886e-05,2]
[351642429,1738681857917,-500.0,9.886e-05,2]
[351642430,1738681857927,-500.0,9.886e-05,2]
[351642431,1738681857936,-500.0,9.886e-05,2]
[351642432,1738681857946,-500.0,9.886e-05,2]
[351642433,1738681857959,-628.14816305,9.886e-05,2]
[351642434,1738681857969,-402.1624416,9.886e-05,2]
[351642435,1738681857978,-500.0,9.886e-05,2]
[351642436,1738681857988,-500.0,9.886e-05,2]
[351642437,1738681857998,-500.0,9.886e-05,2]
[351642438,1738681858008,-500.0,9.886e-05,2]
[351642439,1738681858017,-298.45283038,9.886e-05,2]
[351642440,1738681858026,-500.0,9.886e-05,2]
[351642441,1738681858036,-500.0,9.886e-05,2]
[351642442,1738681858046,-500.0,9.886e-05,2]
[351642443,1738681858055,-500.0,9.886e-05,2]
[351642444,1738681858065,-500.0,9.886e-05,2]
[351642445,1738681858075,-500.0,9.886e-05,2]
[351642446,1738681858085,-548.49246279,9.886e-05,2]
[351642447,1738681858094,-500.0,9.886e-05,2]
[351642448,1738681858104,-500.0,9.886e-05,2]
[351642449,1738681858114,-500.0,9.886e-05,2]
[351642450,1738681858124,-500.0,9.886e-05,2]
[351642451,1738681858134,-500.0,9.886e-05,2]
[351642452,1738681858144,-500.0,9.886e-05,2]
[351642453,1738681858154,-500.0,9.886e-05,2]
[351642454,1738681858165,-500.0,9.886e-05,2]
[351642455,1738681858174,-500.0,9.886e-05,2]
[351642456,1738681858184,-500.0,9.886e-05,2]
[351642457,1738681858194,-500.0,9.886e-05,2]
[351642458,1738681858207,-500.0,9.886e-05,2]
[351642459,1738681858217,-500.0,9.886e-05,2]
[351642460,1738681858226,-500.0,9.886e-05,2]
[351642461,1738681858236,-538.12,9.886e-05,2]
[351642462,1738681858247,-500.0,9.886e-05,2]
[351642463,1738681858257,-500.0,9.886e-05,2]
[351642464,1738681858271,-229.98753194,9.886e-05,2]
[351642465,1738681858320,-500.0,9.749e-05,2]
[351642466,1738681858330,-270.01246806,9.886e-05,2]
[351642467,1738681858340,-500.0,9.886e-05,2]
[351642468,1738681858350,-500.0,9.886e-05,2]
[351642469,1738681858360,-500.0,9.886e-05,2]
[351642470,1738681858372,-500.0,9.886e-05,2]
[351642471,1738681858384,-229.98753194,9.886e-05,2]
[351642472,1738681858397,-270.01246806,9.886e-05,2]
[351642473,1738681858407,-294.18753194,9.886e-05,2]
[351642474,1738681858420,-205.81246806,9.886e-05,2]
[351642475,1738681858431,-500.0,9.886e-05,2]
[351642476,1738681858441,-408.07431316,9.886e-05,2]
[351642477,1738681858456,-253.84399172,9.886e-05,2]
[351642478,1738681858467,-627.32,9.886e-05,2]
[351642479,1738681858477,-500.0,9.886e-05,2]
[351642480,1738681858487,-500.0,9.886e-05,2]
[351642481,1738681858497,-500.0,9.886e-05,2]
[351642482,1738681858507,-500.0,9.886e-05,2]
[351642483,1738681858517,-534.02858504,9.886e-05,2]
[351642484,1738681858527,-500.0,9.886e-05,2]
[351642485,1738681858537,-509.39477923,9.886e-05,2]
[351642486,1738681858550,-104.76782344,9.886e-05,2]
[351642487,1738681858560,-553.29,9.886e-05,2]
[351642488,1738681858570,-500.0,9.886e-05,2]
[351642489,1738681858580,-500.0,9.886e-05,2]
[351642490,1738681858590,-500.0,9.886e-05,2]
[351642491,1738681858600,-500.0,9.886e-05,2]
[351642492,1738681858610,-521.76447085,9.886e-05,2]
[351642493,1738681858621,-272.46,9.886e-05,2]
[351642494,1738681858631,-895.84,9.886e-05,2]
[351642495,1738681858641,-500.0,9.886e-05,2]
[351642496,1738681858651,-500.0,9.886e-05,2]
[351642497,1738681858661,-270.59,9.886e-05,2]
[351642498,1738681858671,-500.0,9.886e-05,2]
[351642499,1738681858680,-949.78,9.886e-05,2]
[351642500,1738681858691,-500.0,9.886e-05,2]
[351642501,1738681858704,-500.0,9.886e-05,2]
[351642502,1738681858714,-500.0,9.886e-05,2]
[351642503,1738681858725,-500.0,9.886e-05,2]
[351642504,1738681858735,-421.43,9.886e-05,2]
[351642505,1738681858745,-474.97770571,9.886e-05,2]
[351642506,1738681858757,-25.02229429,9.886e-05,2]
[351642507,1738681858767,-772.59,9.886e-05,2]
[351642508,1738681858777,-483.0256742,9.886e-05,2]
[351642509,1738681858787,-500.0,9.886e-05,2]
[351642510,1738681858797,-500.0,9.886e-05,2]
[351642511,1738681858808,-500.0,9.886e-05,2]
[351642512,1738681858817,-500.0,9.886e-05,2]
[351642513,1738681858827,-500.0,9.886e-05,2]
[351642514,1738681858838,-500.0,9.886e-05,2]
[351642515,1738681858848,-611.69,9.886e-05,2]
[351642516,1738681858857,-592.69,9.886e-05,2]
[351642517,1738681858867,-134.78203149,9.886e-05,2]
[351642518,1738681858929,-150.0,9.193e-05,2]
[351642519,1738681858939,-500.0,9.611e-05,2]
[351642520,1738681858954,-27.45264475,9.748e-05,2]
[351642522,1738681924417,-500.0,9.474e-05,2]
[351642523,1738681924441,-500.0,9.474e-05,2]
[351642524,1738681924464,-500.0,9.474e-05,2]
[351642525,1738681924488,-500.0,9.474e-05,2]
[351642526,1738681924511,-500.0,9.474e-05,2]
[351642527,1738681924534,-500.0,9.474e-05,2]
[351642528,1738681924559,-266.880568,9.474e-05,2]
[351642529,1738681924582,-500.0,9.474e-05,2]
[351642530,1738681924605,-500.0,9.474e-05,2]
[351642531,1738681924628,-791.48,9.474e-05,2]
[351642532,1738681924651,-500.0,9.474e-05,2]
[351642533,1738681924673,-530.6,9.474e-05,2]
[351642534,1738681924693,-500.0,9.474e-05,2]
[351642535,1738681924715,-563.27,9.474e-05,2]
[351642536,1738681924736,-500.0,9.474e-05,2]
[351642537,1738681924759,-500.0,9.474e-05,2]
[351642538,1738681924781,-500.0,9.474e-05,2]
[351642539,1738681924806,-537.61,9.474e-05,2]
[351642540,1738681924827,-155.292379,9.474e-05,2]
[351642541,1738681924849,-500.0,9.474e-05,2]
[351642542,1738681924871,-500.0,9.474e-05,2]
[351642543,1738681924893,-643.82,9.474e-05,2]
[351642544,1738681924916,-500.0,9.474e-05,2]
[351642545,1738681924938,-301.25480509,9.474e-05,2]
[351642546,1738681924961,-500.0,9.474e-05,2]
[351642547,1738681924983,-500.0,9.474e-05,2]
[351642548,1738681925008,-500.0,9.474e-05,2]
[351642549,1738681925040,-80.79224791,9.474e-05,2]
[351642550,1738681927491,150.0,7.822e-05,2]
[351642551,1738681928055,150.0,7.89e-05,2]
[351642552,1738681946770,-150.0,8.017e-05,2]
[351642553,1738681946792,-150.0,8.039e-05,2]
[351642554,1738681946818,-150.0,8.069e-05,2]
[351642555,1738681946841,-150.0,8.203e-05,2]
[351642556,1738681946864,-150.0,8.267e-05,2]
[351642557,1738681946887,-150.0,8.447e-05,2]
[351642558,1738681946910,-150.0,8.489e-05,2]
[351642559,1738681946932,-150.0,8.513e-05,2]
[351642560,1738681946954,-150.0,8.557e-05,2]
[351642561,1738681946975,-1500.0,8.593e-05,2]
[351642562,1738681946997,-150.0,8.643e-05,2]
[351642563,1738681947019,-150.0,8.725e-05,2]
[351642564,1738681947042,-150.0,8.834e-05,2]
[351642565,1738681947071,-150.0,8.865e-05,2]
[351642566,1738681947094,-150.0,8.991e-05,2]
[351642567,1738681947117,-150.0,9.051e-05,2]
[351642568,1738681947139,-863.59662,9.185e-05,2]
[351642569,1738681947162,-150.0,9.232e-05,2]
[351642570,1738681947184,-150.0,9.286e-05,2]
[351642571,1738681947206,-150.0,9.343e-05,2]
[351642572,1738681947232,-150.0,9.371e-05,2]
[351642573,1738681947254,-150.0,9.473e-05,2]
[351642574,1738681947276,-470.82775209,9.474e-05,2]
[351642575,1738681947298,-500.0,9.474e-05,2]
[351642576,1738681947323,-500.0,9.474e-05,2]
[351642577,1738681947345,-1089.54,9.474e-05,2]
[351642578,1738681947366,-197.579277,9.474e-05,2]
[351642579,1738681947388,-500.0,9.474e-05,2]
[351642580,1738681947414,-844.59,9.474e-05,2]
[351642581,1738681947437,-682.75,9.474e-05,2]
[351642582,1738681947462,-2061.44,9.474e-05,2]
[351642583,1738681947487,-500.0,9.474e-05,2]
[351642584,1738681947511,-633.12,9.474e-05,2]
[351642585,1738681947533,-245.03430557,9.474e-05,2]
[351642586,1738681947554,-500.0,9.474e-05,2]
[351642587,1738681947581,-500.0,9.474e-05,2]
[351642588,1738681947605,-742.21,9.474e-05,2]
[351642589,1738681947626,-500.0,9.474e-05,2]
[351642590,1738681947649,-500.0,9.474e-05,2]
[351642591,1738681947673,-500.0,9.474e-05,2]
[351642592,1738681947697,-500.0,9.474e-05,2]
[351642593,1738681947719,-500.0,9.474e-05,2]
[351642594,1738681947742,-500.0,9.474e-05,2]
[351642595,1738681947764,-757.84,9.474e-05,2]
[351642596,1738681947785,-500.0,9.474e-05,2]
[351642597,1738681947806,-500.0,9.474e-05,2]
[351642598,1738681947832,-500.0,9.474e-05,2]
[351642599,1738681947853,-496.82311456,9.474e-05,2]
[351642600,1738681947875,-500.0,9.474e-05,2]
[351642601,1738681947897,-500.0,9.474e-05,2]
[351642602,1738681947918,-1113.44,9.474e-05,2]
[351642603,1738681947942,-500.0,9.474e-05,2]
[351642604,1738681947965,-500.0,9.475e-05,2]
[351642605,1738681947987,-500.0,9.475e-05,2]
[351642606,1738681948009,-500.0,9.475e-05,2]
[351642607,1738681948033,-500.0,9.475e-05,2]
[351642608,1738681948056,-1073.95,9.475e-05,2]
[351642609,1738681948081,-314.22438067,9.475e-05,2]
[351642610,1738681948103,-303.76,9.475e-05,2]
[351642611,1738681948125,-500.0,9.475e-05,2]
[351642612,1738681948148,-500.0,9.475e-05,2]
[351642613,1738681948170,-500.0,9.475e-05,2]
[351642614,1738681948192,-500.0,9.475e-05,2]
[351642615,1738681948214,-519.27,9.475e-05,2]
[351642616,1738681948235,-500.0,9.475e-05,2]
[351642617,1738681948258,-500.0,9.475e-05,2]
[351642618,1738681948281,-553.55,9.475e-05,2]
[351642619,1738681948302,-500.0,9.475e-05,2]
[351642620,1738681948327,-500.0,9.475e-05,2]
[351642621,1738681948352,-1107.32,9.475e-05,2]
[351642622,1738681948375,-500.0,9.475e-05,2]
[351642623,1738681948399,-1000.0,9.475e-05,2]
[351642624,1738681948424,-513.16,9.475e-05,2]
[351642625,1738681948449,-614.5,9.475e-05,2]
[351642626,1738681948472,-500.0,9.584e-05,2]
[351642627,1738681948495,-150.0,9.606e-05,2]
[351642628,1738681948517,-500.0,9.611e-05,2]
[351642629,1738681948539,-500.0,9.611e-05,2]
[351642630,1738681948565,-500.0,9.611e-05,2]
[351642631,1738681948588,-791.48,9.611e-05,2]
[351642632,1738681948611,-178.3,9.611e-05,2]
[351642633,1738681948634,-530.6,9.611e-05,2]
[351642634,1738681948657,-500.0,9.611e-05,2]
[351642635,1738681948679,-563.27,9.611e-05,2]
[351642636,1738681948702,-500.0,9.611e-05,2]
[351642637,1738681948724,-500.0,9.611e-05,2]
[351642638,1738681948748,-537.61,9.611e-05,2]
[351642639,1738681948770,-500.0,9.611e-05,2]
[351642640,1738681948792,-500.0,9.611e-05,2]
[351642641,1738681949029,-643.82,9.611e-05,2]
[351642642,1738681949054,-500.0,9.611e-05,2]
[351642643,1738681949080,-500.0,9.611e-05,2]
[351642644,1738681949102,-500.0,9.611e-05,2]
[351642645,1738681949123,-551.62,9.611e-05,2]
[351642646,1738681949145,-1089.54,9.611e-05,2]
[351642647,1738681949168,-844.59,9.611e-05,2]
[351642648,1738681949189,-682.75,9.611e-05,2]
[351642649,1738681949212,-2061.44,9.611e-05,2]
[351642650,1738681949235,-742.21,9.611e-05,2]
[351642651,1738681949257,-500.0,9.611e-05,2]
[351642652,1738681949279,-500.0,9.611e-05,2]
[351642653,1738681949615,-500.0,9.611e-05,2]
[351642654,1738681949639,-500.0,9.611e-05,2]
[351642655,1738681949661,-757.84,9.611e-05,2]
[351642656,1738681949684,-500.0,9.611e-05,2]
[351642657,1738681949706,-500.0,9.611e-05,2]
[351642658,1738681949727,-500.0,9.611e-05,2]
[351642659,1738681949750,-500.0,9.611e-05,2]
[351642660,1738681949772,-1113.44,9.611e-05,2]
[351642661,1738681949793,-500.0,9.611e-05,2]
[351642662,1738681949821,-500.0,9.612e-05,2]
[351642663,1738681949843,-500.0,9.612e-05,2]
[351642664,1738681949868,-186.08317333,9.612e-05,2]
[351642665,1738681949892,-1073.95,9.612e-05,2]
[351642666,1738681949914,-500.0,9.612e-05,2]
[351642667,1738681949936,-500.0,9.612e-05,2]
[351642668,1738681949960,-500.0,9.612e-05,2]
[351642669,1738681949982,-500.0,9.612e-05,2]
[351642670,1738681950006,-500.0,9.612e-05,2]
[351642671,1738681950030,-553.55,9.612e-05,2]
[351642672,1738681950055,-501.19,9.612e-05,2]
[351642673,1738681950081,-1107.32,9.612e-05,2]
[351642674,1738681950104,-223.08,9.612e-05,2]
[351642675,1738681950127,-1000.0,9.612e-05,2]
[351642676,1738681950149,-513.16,9.612e-05,2]
[351642677,1738681950172,-614.5,9.612e-05,2]
[351642678,1738681950194,-150.0,9.697e-05,2]
[351642679,1738681950217,-150.0,9.72e-05,2]
[351642680,1738681950240,-150.0,9.737e-05,2]
[351642681,1738681950262,-472.54735525,9.748e-05,2]
[351642682,1738681950294,-500.0,9.748e-05,2]
[351642683,1738681950333,-500.0,9.748e-05,2]
[351642684,1738681950356,-211.46,9.748e-05,2]
[351642685,1738681950382,-791.48,9.748e-05,2]
[351642686,1738681950407,-414.51691371,9.748e-05,2]
[351642687,1738681950431,-530.6,9.748e-05,2]
[351642688,1738681950456,-563.27,9.748e-05,2]
[351642689,1738681950478,-515.20149871,9.748e-05,2]
[351642690,1738681950502,-500.0,9.748e-05,2]
[351642691,1738681950526,-537.61,9.748e-05,2]
[351642692,1738681950551,-500.0,9.748e-05,2]
[351642693,1738681950576,-643.82,9.748e-05,2]
[351642694,1738681950599,-500.0,9.748e-05,2]
[351642695,1738681950623,-500.0,9.748e-05,2]
[351642696,1738681950646,-551.62,9.748e-05,2]
[351642697,1738681950670,-1089.54,9.748e-05,2]
[351642698,1738681950693,-844.59,9.748e-05,2]
[351642699,1738681950716,-682.75,9.748e-05,2]
[351642700,1738681950740,-2061.44,9.748e-05,2]
[351642701,1738681950764,-742.21,9.748e-05,2]
[351642702,1738681950787,-500.0,9.748e-05,2]
[351642703,1738681950816,-557.32,9.748e-05,2]
[351642704,1738681950840,-500.0,9.748e-05,2]
[351642705,1738681950865,-757.84,9.748e-05,2]
[351642706,1738681950890,-197.22,9.748e-05,2]
[351642707,1738681950916,-388.2,9.748e-05,2]
[351642708,1738681950940,-1113.44,9.748e-05,2]
[351642709,1738681950965,-500.0,9.748e-05,2]
[351642710,1738681950990,-500.0,9.749e-05,2]
[351642711,1738681951014,-500.0,9.749e-05,2]
[351642712,1738681951039,-1073.95,9.749e-05,2]
[351642713,1738681951067,-500.0,9.749e-05,2]
[351642714,1738681951091,-500.0,9.749e-05,2]
[351642715,1738681951116,-500.0,9.749e-05,2]
[351642716,1738681951140,-500.0,9.749e-05,2]
[351642717,1738681951163,-500.0,9.749e-05,2]
[351642718,1738681951187,-553.55,9.749e-05,2]
[351642719,1738681951211,-1107.32,9.749e-05,2]
[351642720,1738681951235,-1000.0,9.749e-05,2]
[351642721,1738681951257,-513.16,9.749e-05,2]
[351642722,1738681951280,-614.5,9.749e-05,2]
[351642723,1738681951347,150.0,7.947e-05,2]
[351642724,1738681951393,150.0,8.795e-05,2]
[351642725,1738681951432,150.0,9.08e-05,2]
[351642726,1738681951502,150.0,8.327e-05,2]
[351642727,1738681951581,150.0,7.759e-05,2]
[351642728,1738681951686,500.0,9.474e-05,2]
[351642729,1738681951732,150.0,8.212e-05,2]
[351642730,1738681951763,150.0,7.738e-05,2]
[351642731,1738681951795,150.0,9.653e-05,2]
[351642732,1738681951856,500.0,9.611e-05,2]
[351642733,1738681951969,446.83,9.748e-05,2]
[351642734,1738681952016,150.0,9.717e-05,2]
[351642735,1738681952138,533.16,9.475e-05,2]
[351642736,1738681952276,150.0,7.817e-05,2]
[351642737,1738681952322,150.0,9.21e-05,2]
[351642738,1738681952461,500.0,9.474e-05,2]
[351642739,1738681952492,2500.0,8.851e-05,2]
[351642740,1738681952543,500.0,9.474e-05,2]
[351642741,1738681952585,500.0,9.474e-05,2]
[351642742,1738681952619,500.0,9.611e-05,2]
[351642743,1738681952664,500.0,9.611e-05,2]
[351642744,1738681952696,500.0,9.611e-05,2]
[351642745,1738681952741,150.0,8.203e-05,2]
[351642746,1738681952778,150.0,7.746e-05,2]
[351642747,1738681952813,500.0,9.748e-05,2]
[351642748,1738681952844,150.0,9.736e-05,2]
[351642749,1738681952875,500.0,9.748e-05,2]
[351642750,1738681952922,150.0,8.078e-05,2]
[351642751,1738681952954,150.0,8.065e-05,2]
[351642752,1738681953029,150.0,9.025e-05,2]
[351642753,1738681953078,500.0,9.474e-05,2]
[351642754,1738681953126,150.0,9.748e-05,2]
[351642755,1738681953168,150.0,7.898e-05,2]
[351642756,1738681953289,150.0,8.205e-05,2]
[351642757,1738681953577,150.0,9.694e-05,2]
[351642758,1738681953679,150.0,9.548e-05,2]
[351642759,1738681953720,150.0,7.889e-05,2]
[351642760,1738681953752,500.0,9.475e-05,2]
[351642761,1738681953793,150.0,8.919e-05,2]
[351642762,1738681953837,500.0,9.612e-05,2]
[351642763,1738681953879,500.0,9.475e-05,2]
[351642764,1738681953914,150.0,8.891e-05,2]
[351642765,1738681953951,500.0,9.474e-05,2]
[351642766,1738681954007,150.0,9.701e-05,2]
[351642767,1738681954045,150.0,9.088e-05,2]
[351642768,1738681954083,500.0,9.749e-05,2]
[351642769,1738681954144,500.0,9.611e-05,2]
[351642770,1738681954324,500.0,9.475e-05,2]
[351642771,1738681954368,151.09,9.748e-05,2]
[351642772,1738681954609,500.0,9.612e-05,2]
[351642773,1738681954879,500.0,9.749e-05,2]
[351642774,1738681954909,500.0,9.475e-05,2]
[351642775,1738681956309,500.0,9.612e-05,2]
[351642776,1738681956557,500.0,9.474e-05,2]
[351642777,1738681956593,500.0,9.749e-05,2]
[351642778,1738681956841,500.0,9.611e-05,2]
[351642779,1738681957130,391.62,9.748e-05,2]
[351642780,1738681957909,524.73,9.475e-05,2]
[351642781,1738681958007,500.0,9.474e-05,2]
[351642782,1738681958261,500.0,9.611e-05,2]
[351642783,1738681958397,593.99,9.475e-05,2]
[351642784,1738681958461,524.73,9.612e-05,2]
[351642785,1738681958544,500.0,9.748e-05,2]
[351642786,1738681958663,500.0,9.474e-05,2]
[351642787,1738681958706,593.99,9.612e-05,2]
[351642788,1738681958767,524.73,9.749e-05,2]
[351642789,1738681958802,500.0,9.475e-05,2]
[351642790,1738681958903,500.0,9.611e-05,2]
[351642791,1738681958988,593.99,9.749e-05,2]
[351642792,1738681959169,500.0,9.748e-05,2]
[351642793,1738681961134,500.0,9.474e-05,2]
[351642794,1738681961580,295.11560911,9.475e-05,2]
[351642795,1738682138071,1449.9518326,8e-05,2]
[351642797,1738682492342,500.0,9.999e-05,30]
[351642798,1738682492609,500.0,0.00010136,30]
[351642799,1738682492872,500.0,0.00010273,30]
[351642800,1738682493111,500.0,0.0001041,30]
[351642801,1738682592385,15501.69600365,0.0001,10]
[351642803,1738682736605,294.42104892,8e-05,2]
[351642848,1738683034647,-360.68604273,8.087e-05,2]
[351642849,1738683034974,-639.31395727,8.087e-05,2]
[351642850,1738683034984,-500.0,8.153e-05,2]
[351642851,1738683034994,-1656.78732297,8.219e-05,2]
[351642852,1738683035022,-25.68267703,8.219e-05,2]
[351642853,1738683035032,-1000.0,8.252e-05,2]
[351642854,1738683035042,-200.0,8.308e-05,2]
[351642855,1738683035051,-193.70888455,8.325e-05,2]
[351642856,1738683035070,-460.44111545,8.325e-05,2]
[351642857,1738683035080,-5035.82,8.511e-05,2]
[351642858,1738683035089,-189.5,8.592e-05,2]
[351642859,1738683035099,-103.42450371,8.699e-05,2]
[351642860,1738683036954,-732.06989629,8.699e-05,2]